bitfinex/quotes_SOLUSD_20240717
["timestamp","ask_amount","ask_price","bid_price","bid_amount"]
[1721180027854,1.52839072,163.58,163.54,6.1146]
[1721180028055,1.52839072,163.58,163.53,21.4019]
[1721180028369,7.92759604,163.59,163.54,6.65719298]
[1721180028866,6.3992,163.59,163.54,6.65719298]
[1721180029441,6.3992,163.59,163.55,0.54411915]
[1721180029648,6.3992,163.59,163.55,1.22264173]
[1721180029846,1.52839713,163.58,163.53,15.287]
[1721180030067,1.52851767,163.57,163.53,15.287]
[1721180030252,1.52851767,163.57,163.53,21.402]
[1721180030564,15.8147,163.56,163.5,6.1158]
[1721180030744,15.8147,163.56,163.49,21.4071]
[1721180030745,1.52884814,163.55,163.49,21.4071]
[1721180030946,15.8147,163.56,163.49,15.2906]
[1721180030947,1.52888115,163.54,163.49,15.2906]
[1721180031143,6.0365,163.53,163.51,6.1158]
[1721180031845,6.0365,163.53,163.49,15.2906]
[1721180032050,6.0365,163.53,163.49,21.4071]
[1721180032573,1.5289929,163.52,163.49,21.4071]
[1721180033143,1.5289929,163.52,163.49,15.2906]
[1721180034667,1.5289929,163.52,163.49,21.407]
[1721180035375,1.5289929,163.52,163.49,15.2906]
[1721180035565,1.52905387,163.51,163.47,6.1173]
[1721180035768,6.0365,163.53,163.45,10.0]
[1721180035769,7.56568229,163.53,163.45,10.0]
[1721180036074,7.56568229,163.53,163.5,6.1161]
[1721180036266,6.0365,163.53,163.49,0.32540639]
[1721180036468,6.0365,163.53,163.51,6.1157]
[1721180036659,6.0365,163.53,163.5,21.4061]
[1721180036961,6.0365,163.53,163.51,1.22311347]
[1721180037767,6.0365,163.53,163.52,6.1154]
[1721180038081,1.52863515,163.55,163.52,15.2881]
[1721180038292,15.8147,163.56,163.52,15.2881]
[1721180038663,1.52866411,163.55,163.52,15.2881]
[1721180038979,17.34336714,163.56,163.52,15.2881]
[1721180039283,17.34336714,163.56,163.49,15.291]
[1721180039482,17.34336714,163.56,163.5,1.17752843]
[1721180039796,17.34336714,163.56,163.51,15.2889]
[1721180040092,15.8147,163.56,163.52,7.2924844]
[1721180040287,15.8147,163.56,163.53,6.115]
[1721180040491,15.8147,163.56,163.54,1.17724041]
[1721180040664,6.5994,163.58,163.55,6.114]
[1721180041078,16.4377,163.61,163.55,6.114]
[1721180041079,16.4377,163.61,163.56,1.20308658]
[1721180041279,16.4377,163.61,163.58,6.1131]
[1721180041492,16.4377,163.61,163.56,1.20308658]
[1721180041682,1.52815432,163.6,163.55,21.3993]
[1721180041869,7.64055432,163.6,163.51,15.2887]
[1721180042066,1.52815432,163.6,163.51,21.4045]
[1721180042380,6.086,163.58,163.51,21.4045]
[1721180042564,1.52865054,163.57,163.51,21.4045]
[1721180043087,16.0757,163.56,163.51,15.2887]
[1721180043277,1.52883846,163.55,163.49,6.1164]
[1721180043464,1.5288728,163.54,163.48,21.4088]
[1721180044192,1.5288728,163.54,163.49,6.1165]
[1721180044492,1.52895721,163.55,163.5,6.1158]
[1721180044694,1.52889301,163.54,163.49,1.12957654]
[1721180044898,1.52883322,163.55,163.5,15.2899]
[1721180045064,1.52883322,163.55,163.51,1.12943837]
[1721180045397,1.52883322,163.55,163.5,15.2899]
[1721180045604,16.0757,163.56,163.5,15.2899]
[1721180045605,1.52874783,163.54,163.5,15.2899]
[1721180045770,1.52874783,163.54,163.49,6.1163]
[1721180046292,1.52874783,163.54,163.47,21.4098]
[1721180046471,6.0537,163.53,163.47,21.4098]
[1721180046666,1.52904423,163.52,163.48,6.1169]
[1721180046984,7.58274423,163.53,163.49,6.1164]
[1721180047192,1.52895975,163.52,163.48,6.1168]
[1721180049189,1.5290092,163.51,163.43,55.8899]
[1721180049373,1.5290092,163.51,163.46,6.1174]
[1721180050267,6.0537,163.53,163.47,6.1173]
[1721180050469,1.86924992,163.52,163.47,6.1173]
[1721180050765,1.52924992,163.51,163.47,6.1173]
[1721180051168,1.52924992,163.51,163.45,21.4124]
[1721180051368,1.52924992,163.51,163.46,6.1175]
[1721180051677,1.52924939,163.52,163.47,16.19222324]
[1721180051995,1.52924939,163.52,163.49,6.1165]
[1721180052192,6.0537,163.53,163.47,15.2927]
[1721180052765,6.0537,163.53,163.49,15.2908]
[1721180052972,16.0757,163.56,163.5,20.0]
[1721180053280,17.60417942,163.56,163.53,21.4019]
[1721180053470,17.60417942,163.56,163.53,15.287]
[1721180054170,17.60417942,163.56,163.5,15.2901]
[1721180054367,23.71837942,163.56,163.47,21.4101]
[1721180054571,0.34,163.55,163.47,15.293]
[1721180054783,1.52890177,163.55,163.49,6.1162]
[1721180054985,1.5289077,163.54,163.48,6.1169]
[1721180055180,1.5289077,163.54,163.47,15.293]
[1721180055793,1.5289077,163.54,163.5,6.1161]
[1721180055976,1.52891421,163.55,163.5,6.1161]
[1721180056204,1.52891187,163.54,163.49,6.1165]
[1721180056378,1.52891187,163.54,163.47,21.4102]
[1721180057389,0.34,163.53,163.47,15.293]
[1721180057698,1.52922401,163.52,163.47,15.293]
[1721180057892,1.52923018,163.51,163.46,6.1175]
[1721180058106,6.1227,163.5,163.46,6.1175]
[1721180058393,1.5292554,163.49,163.45,6.118]
[1721180059097,1.52931365,163.48,163.44,15.2957]
[1721180059404,17.85641365,163.48,163.41,15.2985]
[1721180059895,17.85641365,163.48,163.42,6.1189]
[1721180060101,6.4575,163.47,163.4,6.1199]
[1721180060397,6.6541,163.45,163.38,6.1206]
[1721180060603,1.86997786,163.44,163.38,6.1206]
[1721180060907,1.86997786,163.44,163.39,6.1202]
[1721180062905,8.18388657,163.45,163.4,7.32281401]
[1721180063079,6.6541,163.45,163.4,7.33929276]
[1721180063282,6.6541,163.45,163.4,6.1198]
[1721180063283,1.52970808,163.44,163.4,6.1198]
[1721180063876,1.52970808,163.44,163.4,7.34368833]
[1721180064078,1.52970808,163.44,163.41,6.1195]
[1721180064298,6.6541,163.45,163.42,6.1191]
[1721180064505,6.6541,163.45,163.41,6.1192]
[1721180064685,6.6541,163.45,163.41,15.2981]
[1721180064885,6.6541,163.45,163.42,6.1191]
[1721180065304,1.52954402,163.44,163.38,15.3016]
[1721180065508,6.6541,163.45,163.38,25.3016]
[1721180065899,6.6541,163.45,163.4,15.2992]
[1721180066401,6.6541,163.45,163.41,6.1195]
[1721180067006,6.6541,163.45,163.4,21.419]
[1721180067305,1.52963816,163.44,163.4,15.2992]
[1721180067488,1.52963816,163.44,163.4,21.419]
[1721180067689,1.52963816,163.44,163.4,15.2992]
[1721180067896,1.52963816,163.44,163.4,22.64062469]
[1721180068196,1.52963816,163.44,163.4,16.52072469]
[1721180068584,1.52963816,163.44,163.4,21.419]
[1721180069283,1.52963816,163.44,163.4,15.2992]
[1721180069529,0.17,163.43,163.36,6.1213]
[1721180069810,1.8700673,163.43,163.37,6.121]
[1721180070019,1.7000673,163.43,163.36,15.3028]
[1721180070616,1.7000673,163.43,163.37,6.1207]
[1721180071713,0.17,163.42,163.37,6.121]
[1721180072017,1.87013169,163.42,163.36,15.3028]
[1721180072714,1.87013169,163.42,163.36,21.4239]
[1721180072900,15.4695,163.41,163.35,6.1218]
[1721180073093,15.4695,163.41,163.33,15.306]
[1721180073094,1.87032304,163.4,163.33,15.306]
[1721180073296,1.53032069,163.39,163.34,1.22425655]
[1721180073497,1.53032069,163.39,163.36,6.1214]
[1721180073717,1.53032069,163.39,163.35,6.1218]
[1721180074395,1.53032317,163.4,163.35,6.1218]
[1721180074594,1.53029824,163.39,163.33,15.306]
[1721180074889,6.2417,163.38,163.33,15.306]
[1721180075108,1.53044412,163.37,163.33,15.306]
[1721180075309,1.53044412,163.37,163.33,21.4283]
[1721180075911,1.53044412,163.37,163.33,15.306]
[1721180076117,1.53044412,163.37,163.3,6.9635016]
[1721180076417,0.17,163.36,163.3,6.9635016]
[1721180076720,1.70066845,163.36,163.3,6.9635016]
[1721180077317,1.70066845,163.36,163.3,0.8402016]
[1721180077836,1.53074127,163.37,163.31,6.1231]
[1721180078037,1.53061961,163.37,163.33,6.1225]
[1721180078232,7.77231961,163.38,163.31,15.3077]
[1721180078534,6.2417,163.38,163.35,6.1218]
[1721180078928,1.53030176,163.37,163.33,21.4277]
[1721180079120,1.53030176,163.37,163.33,15.3055]
[1721180079326,1.53030176,163.37,163.32,6.1229]
[1721180079327,1.53030176,163.37,163.3,0.8402016]
[1721180079531,1.53030176,163.37,163.32,6.1229]
[1721180080514,1.53030176,163.37,163.32,1.22444572]
[1721180080726,1.53030176,163.37,163.31,15.3077]
[1721180080941,6.2417,163.38,163.32,1.22431683]
[1721180081121,1.53039887,163.37,163.33,6.1225]
[1721180081324,1.53039887,163.37,163.31,15.3077]
[1721180081740,1.53039887,163.37,163.31,21.4309]
[1721180082519,0.34,163.36,163.31,15.3077]
[1721180082927,0.34,163.36,163.31,21.431]
[1721180083233,0.34,163.37,163.31,21.431]
[1721180083641,1.87072523,163.37,163.31,21.431]
[1721180084749,1.87072523,163.37,163.31,15.3077]
[1721180085248,1.87072523,163.37,163.31,21.4309]
[1721180086745,7.77242513,163.38,163.32,0.39042947]
[1721180087044,7.77242513,163.38,163.3,0.8402016]
[1721180087045,7.77242513,163.38,163.34,21.4274]
[1721180087233,7.77242513,163.38,163.35,6.1217]
[1721180087623,7.77242513,163.38,163.34,21.4275]
[1721180087868,1.53039693,163.37,163.34,21.4275]
[1721180088643,6.2417,163.38,163.34,21.4275]
[1721180089145,6.2417,163.38,163.35,6.1217]
[1721180089330,6.2417,163.38,163.36,6.1214]
[1721180089534,6.2417,163.38,163.35,6.1217]
[1721180090349,15.4695,163.41,163.38,6.1203]
[1721180090652,15.4695,163.41,163.37,15.3023]
[1721180090653,1.53005094,163.4,163.36,6.1213]
[1721180090859,1.53023631,163.39,163.36,6.1213]
[1721180091153,1.53021694,163.4,163.36,6.1213]
[1721180091343,1.53021613,163.39,163.36,6.1213]
[1721180091548,1.53021613,163.39,163.35,1.22358954]
[1721180091549,1.53021613,163.39,163.34,21.427]
[1721180092457,15.4695,163.41,163.33,6.1224]
[1721180092757,1.87046076,163.4,163.33,6.1224]
[1721180092959,1.53040062,163.39,163.33,6.1224]
[1721180093787,6.1344,163.37,163.31,15.3079]
[1721180093936,1.53067981,163.36,163.31,15.3079]
[1721180094139,1.53068112,163.35,163.31,21.4311]
[1721180094433,7.66501417,163.37,163.31,15.3079]
[1721180095029,6.1344,163.37,163.34,6.122]
[1721180096679,1.53052184,163.4,163.34,1.22431759]
[1721180096841,1.5302382,163.39,163.36,6.1214]
[1721180097677,23.13413969,163.41,163.37,6.121]
[1721180097961,1.53009776,163.4,163.36,6.1213]
[1721180098372,1.53009776,163.4,163.35,21.4257]
[1721180098845,1.53009776,163.4,163.35,15.304]
[1721180099345,1.53009776,163.4,163.35,21.4257]
[1721180099565,1.53020057,163.39,163.35,15.304]
[1721180100139,1.53020057,163.39,163.35,6.1217]
[1721180100361,1.53035676,163.4,163.35,6.1217]
[1721180100538,1.53025855,163.39,163.35,6.1217]
[1721180100739,1.53025855,163.39,163.33,6.1222]
[1721180100959,1.53025855,163.39,163.34,6.1221]
[1721180101285,1.53025855,163.39,163.3,20.8402016]
[1721180101565,21.7739,163.41,163.35,6.1217]
[1721180101773,1.8703494,163.4,163.35,6.1217]
[1721180102063,23.1342494,163.41,163.36,7.34552456]
[1721180102276,29.2538494,163.41,163.34,15.3048]
[1721180102450,0.34,163.4,163.34,21.4269]
[1721180102640,1.87037392,163.4,163.34,21.4269]
[1721180102987,1.87037392,163.4,163.3,31.4581016]
[1721180102988,62.8699,163.38,163.3,0.8402016]
[1721180103265,6.5171,163.32,163.3,0.8402016]
[1721180103839,6.5171,163.32,163.31,6.1233]
[1721180104051,6.5171,163.36,163.32,6.1228]
[1721180104276,6.5171,163.36,163.3,17.37313058]
[1721180104277,1.53057402,163.35,163.3,17.37313058]
[1721180104564,1.53057402,163.35,163.3,23.49673058]
[1721180105185,1.53057402,163.35,163.3,16.1485016]
[1721180105883,1.53057402,163.35,163.3,0.8402016]
[1721180106549,0.34,163.34,163.3,0.8402016]
[1721180106745,7.99312931,163.34,163.3,0.8402016]
[1721180106964,1.87092931,163.34,163.3,0.8402016]
[1721180107169,16.1552,163.33,163.3,0.8402016]
[1721180107359,1.70111992,163.32,163.3,0.8402016]
[1721180107574,0.17,163.31,163.3,0.8402016]
[1721180109477,6.2933,163.31,163.3,0.8402016]
[1721180109683,12.4246,163.31,163.3,0.8402016]
[1721180109859,6.1237,163.3,163.21,15.3173]
[1721180110183,6.4713,163.31,163.21,15.3173]
[1721180110184,7.99547663,163.29,163.21,15.3173]
[1721180110359,1.70137663,163.29,163.23,6.1262]
[1721180110562,1.53137663,163.29,163.25,6.1254]
[1721180110770,1.53121019,163.3,163.24,15.3147]
[1721180110971,7.66251019,163.31,163.27,21.4364]
[1721180111483,7.66251019,163.31,163.25,6.1252]
[1721180111660,7.66251019,163.31,163.26,6.1251]
[1721180111862,7.66251019,163.31,163.25,1.22489789]
[1721180111863,7.66251019,163.31,163.25,7.35029789]
[1721180112071,7.66251019,163.31,163.24,21.4406]
[1721180112367,13.78601019,163.31,163.24,15.3148]
[1721180112613,0.17,163.3,163.19,15.3191]
[1721180112915,1.87144653,163.3,163.19,15.3191]
[1721180113579,7.99534653,163.3,163.22,6.1263]
[1721180114413,1.87144653,163.3,163.23,6.1262]
[1721180114614,1.87144653,163.3,163.24,6.1258]
[1721180114992,20.22144653,163.3,163.24,6.1258]
[1721180115192,26.34514653,163.3,163.22,6.1265]
[1721180115505,1.87144653,163.3,163.24,6.1258]
[1721180115698,1.87144653,163.3,163.23,6.1262]
[1721180116109,1.87144653,163.3,163.22,15.316]
[1721180117292,6.1241,163.29,163.22,15.316]
[1721180117503,1.87153932,163.28,163.22,15.316]
[1721180117804,1.70153932,163.28,163.22,21.4426]
[1721180118003,0.17,163.27,163.22,21.4426]
[1721180118209,16.96024323,163.26,163.22,15.316]
[1721180118519,15.4286,163.26,163.23,6.1262]
[1721180119126,1.5314647,163.25,163.22,15.316]
[1721180119424,1.5314647,163.25,163.21,6.1267]
[1721180120705,1.5314647,163.25,163.22,6.1265]
[1721180121600,1.5314647,163.25,163.21,15.3171]
[1721180121601,1.5314647,163.25,163.23,6.1263]
[1721180122328,16.2914647,163.25,163.23,6.1263]
[1721180122628,1.5314647,163.25,163.23,6.1263]
[1721180123401,14.76,163.24,163.21,21.4439]
[1721180123727,1.53168229,163.25,163.23,6.1263]
[1721180124637,17.01146618,163.3,163.2,10.0]
[1721180124933,17.01146618,163.3,163.25,14.76]
[1721180124934,15.4799,163.3,163.25,14.76]
[1721180125104,1.53112647,163.29,163.26,6.1251]
[1721180125309,1.53112647,163.29,163.25,6.1254]
[1721180125523,1.53129485,163.3,163.26,6.1248]
[1721180125732,16.29116531,163.3,163.26,6.1248]
[1721180125926,1.53116495,163.33,163.28,14.76]
[1721180126129,15.4799,163.34,163.32,6.1229]
[1721180126317,17.01063047,163.34,163.32,6.1229]
[1721180126530,17.01063047,163.34,163.31,6.1232]
[1721180126728,1.53073047,163.34,163.31,6.1232]
[1721180126943,1.53073047,163.34,163.3,16.53283329]
[1721180127111,6.4228,163.35,163.3,16.53283329]
[1721180127313,6.4228,163.35,163.31,14.76]
[1721180127639,6.4228,163.35,163.31,6.1232]
[1721180127844,6.4228,163.35,163.32,6.1229]
[1721180128137,6.4228,163.35,163.31,6.1232]
[1721180128353,7.95339343,163.35,163.3,15.3083]
[1721180128513,7.95339343,163.35,163.29,6.124]
[1721180128714,7.95339343,163.35,163.27,15.3119]
[1721180129049,0.17,163.34,163.29,6.124]
[1721180129342,1.53080667,163.34,163.31,6.1232]
[1721180129546,1.53080667,163.34,163.32,6.1228]
[1721180129718,1.53080667,163.34,163.3,7.34824534]
[1721180129918,6.4228,163.35,163.3,1.22464534]
[1721180130142,1.53063111,163.34,163.29,16.53410489]
[1721180130440,6.1226,163.33,163.26,15.3128]
[1721180130746,1.7010525,163.32,163.27,1.224842]
[1721180130949,1.7010525,163.32,163.23,45.9846]
[1721180130950,15.6439,163.31,163.25,6.1252]
[1721180131243,1.53117053,163.3,163.25,6.1252]
[1721180131448,17.1750174,163.31,163.28,6.1242]
[1721180131655,15.6439,163.31,163.28,6.1242]
[1721180132323,15.6439,163.31,163.27,15.3115]
[1721180132854,15.6439,163.31,163.28,6.1244]
[1721180133025,15.6439,163.31,163.27,15.3115]
[1721180133220,15.6439,163.31,163.27,16.53564766]
[1721180133940,6.4228,163.35,163.27,16.53564766]
[1721180134147,1.53085395,163.34,163.27,16.53564766]
[1721180134343,1.53085395,163.34,163.27,22.66004766]
[1721180134533,7.65315395,163.34,163.27,15.3115]
[1721180134935,1.53085395,163.34,163.27,15.3115]
[1721180135328,0.17,163.33,163.27,15.3115]
[1721180135530,6.4228,163.35,163.27,16.53632722]
[1721180135730,1.70087314,163.34,163.27,16.53632722]
[1721180135948,1.70087314,163.34,163.28,6.1241]
[1721180136444,1.70087314,163.34,163.29,6.124]
[1721180136820,1.70087314,163.34,163.27,16.53632722]
[1721180136821,1.70087314,163.34,163.27,15.3115]
[1721180137023,1.70087314,163.34,163.24,50.629]
[1721180137024,6.2926,163.33,163.25,6.1254]
[1721180137241,1.70110328,163.32,163.24,15.3146]
[1721180137415,1.53110328,163.32,163.24,15.3146]
[1721180137620,1.53110328,163.32,163.25,6.1255]
[1721180138028,0.34,163.31,163.24,15.3146]
[1721180138232,1.87127003,163.31,163.24,15.3146]
[1721180138626,1.87127003,163.31,163.25,6.1254]
[1721180139030,1.87127003,163.31,163.26,6.1251]
[1721180139443,1.53124903,163.32,163.27,6.1247]
[1721180139646,0.34,163.33,163.27,6.1247]
[1721180139851,1.87112081,163.33,163.26,6.1251]
[1721180140034,1.87112081,163.33,163.24,6.1259]
[1721180140226,6.1233,163.31,163.24,15.3145]
[1721180140427,1.87142466,163.3,163.24,15.3145]
[1721180140628,1.53141545,163.29,163.24,15.3145]
[1721180140929,0.17,163.28,163.24,15.3145]
[1721180141149,1.70144563,163.28,163.24,15.3145]
[1721180141365,1.70144563,163.28,163.22,6.1266]
[1721180141933,1.70144563,163.28,163.21,21.4445]
[1721180142742,1.70144563,163.28,163.23,15.3152]
[1721180142942,0.17,163.28,163.24,6.1258]
[1721180143129,1.70146648,163.29,163.24,6.1258]
[1721180143944,0.17,163.28,163.23,21.4413]
[1721180144232,1.7014758,163.28,163.23,15.3152]
[1721180144652,6.5949,163.27,163.14,27.2628016]
[1721180144830,15.1987,163.25,163.14,27.2628016]
[1721180145026,1.53174963,163.24,163.14,33.3865016]
[1721180145226,1.53174901,163.23,163.14,33.3865016]
[1721180145426,1.53174901,163.23,163.2,6.1273]
[1721180146245,15.1987,163.25,163.2,6.1273]
[1721180146246,1.53175176,163.24,163.2,6.1273]
[1721180146445,1.53176631,163.23,163.19,6.1277]
[1721180146655,1.53176631,163.23,163.14,0.8402016]
[1721180146945,1.53176631,163.23,163.17,6.1282]
[1721180147456,0.17,163.22,163.17,6.1282]
[1721180147749,1.70202608,163.22,163.17,6.1282]
[1721180147940,1.70202608,163.22,163.18,6.128]
[1721180148338,1.70202608,163.22,163.17,6.1285]
[1721180149346,1.70202608,163.22,163.19,6.1277]
[1721180150149,1.70202608,163.22,163.2,6.1272]
[1721180150348,0.17,163.22,163.19,6.1277]
[1721180150536,1.70198131,163.22,163.19,6.1277]
[1721180151055,1.70198131,163.22,163.18,21.4479]
[1721180151950,1.70198131,163.22,163.15,21.452]
[1721180151951,6.3709,163.21,163.15,21.452]
[1721180152157,1.70229509,163.2,163.15,15.323]
[1721180152454,1.70229509,163.2,163.14,0.8402016]
[1721180152455,0.17,163.19,163.14,0.8402016]
[1721180152752,1.70230742,163.19,163.14,0.8402016]
[1721180153336,1.70230742,163.19,163.15,6.1293]
[1721180154138,1.70230742,163.19,163.14,6.9698016]
[1721180155742,0.17,163.18,163.14,6.9698016]
[1721180156560,0.17,163.18,163.14,6.9697016]
[1721180156746,1.70230742,163.19,163.14,6.9697016]
[1721180157464,1.70230742,163.19,163.14,0.8402016]
[1721180157843,1.70230742,163.19,163.14,6.9696016]
[1721180159949,0.17,163.18,163.14,6.9696016]
[1721180160147,0.17,163.18,163.14,0.8402016]
[1721180160365,0.17,163.18,163.14,6.9698016]
[1721180161361,1.70230742,163.19,163.14,6.9698016]
[1721180161566,1.53226814,163.2,163.15,1.22574879]
[1721180161869,1.53226814,163.2,163.15,6.1292]
[1721180164265,6.3709,163.21,163.19,6.1275]
[1721180164443,6.3709,163.21,163.18,0.90528493]
[1721180164643,6.3709,163.21,163.17,15.3213]
[1721180164954,6.3709,163.21,163.18,7.31611643]
[1721180165157,6.3709,163.21,163.19,6.1277]
[1721180165367,1.53175566,163.24,163.2,6.1273]
[1721180165546,1.53171132,163.23,163.19,6.1277]
[1721180165747,1.53171084,163.24,163.19,6.1277]
[1721180165961,1.53171084,163.24,163.2,7.31555515]
[1721180166162,1.53171084,163.24,163.2,6.1273]
[1721180166755,1.53171084,163.24,163.19,6.1277]
[1721180166960,1.53169278,163.23,163.19,6.1277]
[1721180167468,1.53170724,163.24,163.2,1.22536579]
[1721180167664,16.73036969,163.25,163.2,6.52169006]
[1721180167857,16.73036969,163.25,163.19,21.4463]
[1721180168165,16.73036969,163.25,163.2,6.1273]
[1721180168465,6.1263,163.24,163.16,6.1285]
[1721180168664,1.53188493,163.23,163.17,6.1285]
[1721180168877,1.53188493,163.23,163.15,22.60494584]
[1721180169174,0.34,163.22,163.14,8.1954699]
[1721180169472,1.53219543,163.21,163.14,8.1954699]
[1721180169685,1.87220393,163.2,163.15,7.35479317]
[1721180169848,1.53220393,163.2,163.14,6.9698016]
[1721180170048,6.6442,163.19,163.15,1.22544298]
[1721180170767,8.17633498,163.19,163.14,23.51880959]
[1721180171162,6.6442,163.19,163.15,1.2257651]
[1721180171474,6.6442,163.19,163.16,6.1288]
[1721180171786,1.53220637,163.21,163.17,16.54708214]
[1721180171954,1.53210268,163.22,163.18,7.35327194]
[1721180172267,1.53210268,163.22,163.18,6.1281]
[1721180172480,1.53192192,163.23,163.18,7.35363753]
[1721180173251,1.53192192,163.23,163.17,15.3214]
[1721180173554,1.53192192,163.23,163.18,7.35345402]
[1721180174174,1.53192192,163.23,163.18,1.22555402]
[1721180174771,1.53192192,163.23,163.17,15.3214]
[1721180175280,7.65822192,163.23,163.16,6.1286]
[1721180175465,1.53192192,163.23,163.17,7.35407419]
[1721180175663,1.53192192,163.23,163.17,6.1285]
[1721180175860,1.53192192,163.23,163.15,7.35447925]
[1721180176165,0.34,163.22,163.15,7.35447925]
[1721180176368,1.87204474,163.22,163.16,6.1288]
[1721180176570,1.87204474,163.22,163.15,1.22557925]
[1721180176959,1.87204474,163.22,163.16,6.1289]
[1721180177592,1.87204474,163.22,163.14,16.1640016]
[1721180177759,6.1277,163.2,163.14,0.8402016]
[1721180177959,1.5322791,163.19,163.14,0.8402016]
[1721180178283,1.7022791,163.19,163.14,0.8402016]
[1721180178466,1.5322791,163.19,163.14,0.8402016]
[1721180179593,6.055,163.17,163.14,0.8402016]
[1721180179765,7.58731431,163.17,163.14,0.8402016]
[1721180186365,16.225,163.18,163.14,0.8402016]
[1721180186600,7.73322257,163.21,163.17,6.1285]
[1721180186891,7.73322257,163.21,163.16,6.1288]
[1721180187195,7.73322257,163.21,163.16,7.35435707]
[1721180187406,7.73322257,163.21,163.17,6.1284]
[1721180187633,6.2011,163.21,163.17,6.1284]
[1721180187889,1.53193795,163.24,163.18,1.07655896]
[1721180188295,1.53193795,163.24,163.2,6.1274]
[1721180188471,1.53172329,163.25,163.2,6.1274]
[1721180188667,1.53172329,163.25,163.19,6.1277]
[1721180188978,7.65742329,163.25,163.17,21.4493]
[1721180189177,6.1259,163.24,163.17,15.3208]
[1721180189363,1.53189086,163.23,163.17,15.3208]
[1721180189568,1.53189086,163.23,163.17,22.6748108]
[1721180189898,1.53189086,163.23,163.18,6.1281]
[1721180190277,1.53189086,163.23,163.14,26.1643016]
[1721180190607,1.5318881,163.22,163.16,6.1289]
[1721180190805,6.1266,163.23,163.14,22.2936016]
[1721180191108,1.53198816,163.22,163.15,6.1293]
[1721180191283,0.17,163.21,163.15,6.1293]
[1721180191493,1.53212413,163.2,163.15,6.1293]
[1721180191701,1.53212413,163.2,163.14,16.1643016]
[1721180192018,21.8743,163.19,163.14,16.1643016]
[1721180192184,1.53202301,163.18,163.14,16.1643016]
[1721180192384,1.53202301,163.18,163.14,0.8402016]
[1721180193000,1.53202301,163.18,163.14,6.9696016]
[1721180193202,1.53221887,163.17,163.14,0.8402016]
[1721180194307,21.8743,163.19,163.15,1.22574136]
[1721180194482,21.8743,163.19,163.14,8.19554296]
[1721180194685,1.5321798,163.18,163.14,0.8402016]
[1721180194886,1.53241379,163.17,163.14,0.8402016]
[1721180195787,0.17,163.16,163.14,0.8402016]
[1721180195993,1.70255662,163.16,163.14,0.8402016]
[1721180196896,0.17,163.16,163.14,0.8402016]
[1721180197099,1.70255441,163.17,163.14,0.8402016]
[1721180197292,1.53255441,163.17,163.14,0.8402016]
[1721180197805,0.34,163.16,163.14,0.8402016]
[1721180198016,1.87263566,163.16,163.14,0.8402016]
[1721180200994,1.70263566,163.16,163.14,0.8402016]
[1721180203987,0.17,163.16,163.14,0.8402016]
[1721180204188,1.70253791,163.16,163.14,0.8402016]
[1721180204511,1.53253714,163.17,163.14,0.8402016]
[1721180205115,1.53241375,163.18,163.14,0.8402016]
[1721180205412,23.40671375,163.19,163.14,0.8402016]
[1721180205619,1.5322663,163.18,163.14,0.8402016]
[1721180205812,1.53238586,163.17,163.14,0.8402016]
[1721180206012,1.53238572,163.18,163.14,0.8402016]
[1721180206813,1.53238572,163.18,163.14,6.9698016]
[1721180207197,1.53238572,163.18,163.14,0.8402016]
[1721180207395,1.53222012,163.17,163.14,0.8402016]
[1721180207705,1.53230605,163.18,163.14,0.8402016]
[1721180207894,23.89584763,163.23,163.14,16.1639016]
[1721180208098,23.89584763,163.23,163.16,6.1286]
[1721180208301,23.89584763,163.23,163.17,6.1284]
[1721180208817,23.89584763,163.23,163.18,6.1281]
[1721180209115,23.89584763,163.23,163.16,15.3218]
[1721180209116,1.53178513,163.22,163.17,6.1284]
[1721180209616,1.53178513,163.22,163.16,15.3218]
[1721180209997,7.65848513,163.22,163.15,6.129]
[1721180210397,6.2971,163.21,163.14,6.9698016]
[1721180210613,1.53223048,163.2,163.14,6.9698016]
[1721180210918,1.53223048,163.2,163.14,8.19554363]
[1721180211302,1.53223048,163.2,163.15,1.22574379]
[1721180211503,1.53223048,163.2,163.14,6.9698016]
[1721180211714,1.53223048,163.2,163.15,1.17211349]
[1721180211922,1.70217796,163.21,163.14,0.8402016]